[Event "23rd Hogeschool Zeeland Open 2019"]
[Site "Vlissingen"]
[Date "2019.08.04"]
[Round "2.15"]
[White "Nebolsina, Vera"]
[Black "Hendrix, Joachim"]
[Result "1-0"]
[ECO "B06"]
[WhiteElo "2269"]
[BlackElo "1893"]
[Annotator "NA"]
[PlyCount "47"]
[EventDate "2019.08.03"]
[EventType "swiss"]
[EventCountry "NED"]
[SourceTitle "playchess.com"]
[Source "ChessBase"]
[SourceQuality "1"]
[TimeControl "40/5400+30:1800+30"]

1. e4 {[%emt 0:00:01]} g6 {[%emt 0:00:00]} 2. d4 {[%emt 0:00:07]} Bg7 {[%emt 0:00:00]} 3. Nc3 {[%emt 0:00:06]} d6 {[%emt 0:00:00]} 4. h4 {[%emt 0:00:10]} h5 {[%emt 0:05:03]} 5. Be3 {[%emt 0:02:48]} a6 {[%emt 0:04:24]} 6. Nf3 {[%emt 0:02:08]} b5 {[%emt 0:03:13]} 7. Ng5 {[%emt 0:07:27]} Nh6 {[%emt 0:08:23]} 8. a4 {[%emt 0:05:06]} b4 {[%emt 0:01:42]} 9. Nd5 {[%emt 0:00:07]} a5 {[%emt 0:12:30]} 10. c3 {[%emt 0:01:15]} e6 {[%emt 0:04:23]} 11. Nf4 {[%emt 0:00:32]} bxc3 {[%emt 0:07:38]} 12. bxc3 {[%emt 0:00:06]} O-O {[%emt 0:00:35]} 13. Bc4 {[%emt 0:04:16]} Qe8 {[%emt 0:08:07]} 14. O-O {[%emt 0:05:46]} Ba6 {[%emt 0:09:22]} 15. Qe2 {[%emt 0:01:10]} Qc6 {[%emt 0:03:16]} 16. Bb5 {[%emt 0:01:00]} Qb7 {[%emt 0:03:22]} 17. Rab1 {[%emt 0:01:49]} Qc8 {[%emt 0:03:38]} 18. Ngxe6 {[%emt 0:07:39]} fxe6 {[%emt 0:04:29]} 19. Nxg6 {[%emt 0:00:35]} Bxb5 {[%emt 0:04:01]} 20. Rxb5 {[%emt 0:04:29]} Qe8 {[%emt 0:03:48]} 21. Nxf8 {[%emt 0:00:44]} Bxf8 {[%emt 0:01:05]} 22. Rxh5 {[%emt 0:01:02]} Kh7 {[%emt 0:00:58]} 23. g4 {[%emt 0:01:16]} Qg6 {[%emt 0:02:29]} 24. Bxh6 {[%emt 0:00:13]} 1-0

[Event "23rd Hogeschool Zeeland Open 2019"]
[Site "Vlissingen"]
[Date "2019.08.04"]
[Round "2.16"]
[White "Oostvogels, Niek"]
[Black "Klepke, Ricardo"]
[Result "0-1"]
[ECO "A05"]
[WhiteElo "1929"]
[BlackElo "2267"]
[Annotator "NA"]
[PlyCount "66"]
[EventDate "2019.08.03"]
[EventType "swiss"]
[EventCountry "NED"]
[SourceTitle "playchess.com"]
[Source "ChessBase"]
[SourceQuality "1"]
[TimeControl "40/5400+30:1800+30"]

1. e4 {[%emt 0:00:00]} c5 {[%emt 0:01:28]} 2. Nf3 {[%emt 0:00:09]} d6 {[%emt 0:00:09]} 3. g3 {[%emt 0:00:18]} g6 {[%emt 0:03:48]} 4. Bg2 {[%emt 0:00:07]} Bg7 {[%emt 0:00:11]} 5. O-O {[%emt 0:00:22]} Nc6 {[%emt 0:00:51]} 6. c3 {[%emt 0:00:24]} e5 {[%emt 0:00:25]} 7. d3 {[%emt 0:00:31]} Nf6 {[%emt 0:02:29]} 8. a3 {[%emt 0:03:34]} a5 {[%emt 0:01:59]} 9. a4 {[%emt 0:00:31]} O-O {[%emt 0:01:34]} 10. Na3 {[%emt 0:01:42]} h6 {[%emt 0:02:41]} 11. Bd2 {[%emt 0:09:40]} Be6 {[%emt 0:01:29]} 12. Qc1 {[%emt 0:10:17]} Kh7 {[%emt 0:00:23]} 13. Nc2 {[%emt 0:00:14]} c4 {[%emt 0:10:58]} 14. Ne3 {[%emt 0:07:32]} cxd3 {[%emt 0:05:14]} 15. Ne1 {[%emt 0:03:55]} d5 {[%emt 0:01:22]} 16. Nxd3 {[%emt 0:02:42]} d4 {[%emt 0:06:12]} 17. Nd1 {[%emt 0:11:41]} Bc4 {[%emt 0:00:52]} 18. Nxe5 {[%emt 0:09:51]} Nxe5 {[%emt 0:09:39]} 19. cxd4 {[%emt 0:01:15]} Bxf1 {[%emt 0:04:53]} 20. dxe5 {[%emt 0:00:12]} Bxg2 {[%emt 0:01:43]} 21. exf6 {[%emt 0:00:10]} Qxf6 {[%emt 0:00:28]} 22. Kxg2 {[%emt 0:00:28]} Rfe8 {[%emt 0:04:17]} 23. Nc3 {[%emt 0:04:58]} Qc6 {[%emt 0:00:24]} 24. f3 {[%emt 0:02:06]} Qc4 {[%emt 0:02:45]} 25. Qe1 {[%emt 0:05:58]} Rad8 {[%emt 0:03:22]} 26. Rd1 {[%emt 0:07:12]} Qb3 {[%emt 0:02:14]} 27. Qf1 {[%emt 0:14:00]} Bxc3 {[%emt 0:04:19]} 28. bxc3 {[%emt 0:00:10]} Rd7 {[%emt 0:00:56]} 29. Qe1 {[%emt 0:02:29]} Red8 {[%emt 0:01:00]} 30. Kf1 {[%emt 0:00:56]} Qc2 {[%emt 0:00:46]} 31. Ke2 {[%emt 0:00:40]} Qxa4 {[%emt 0:01:02]} 32. Kf2 {[%emt 0:01:12]} Qc2 {[%emt 0:00:13]} 33. Ke2 {[%emt 0:00:10]} a4 {[%emt 0:00:10]} 0-1

[Event "23rd Hogeschool Zeeland Open 2019"]
[Site "Vlissingen"]
[Date "2019.08.04"]
[Round "3.3"]
[White "Wunnink, Michael"]
[Black "Van Wely, Loek"]
[Result "0-1"]
[ECO "D85"]
[WhiteElo "2214"]
[BlackElo "2616"]
[Annotator "ChessBase"]
[PlyCount "80"]
[EventDate "2019.08.03"]
[EventType "swiss"]
[EventCountry "NED"]
[SourceTitle "playchess.com"]
[Source "ChessBase"]
[SourceQuality "1"]
[TimeControl "40/5400+30:1800+30"]

1. d4 {[%emt 0:00:00]} Nf6 {[%emt 0:00:10]} 2. c4 {[%emt 0:00:00]} g6 {[%emt 0:00:08]} 3. Nc3 {[%emt 0:00:00]} d5 {[%emt 0:00:07]} 4. cxd5 {[%emt 0:01:04]} Nxd5 {[%emt 0:00:26]} 5. e4 {[%emt 0:00:08]} Nxc3 {[%emt 0:00:08]} 6. bxc3 {[%emt 0:00:04]} Bg7 {[%emt 0:00:07]} 7. Be3 {[%emt 0:00:36]} c5 {[%emt 0:01:45]} 8. Rc1 {[%emt 0:00:30]} Qa5 {[%emt 0:03:40]} 9. Qd2 {[%emt 0:00:25]} cxd4 {[%emt 0:00:54]} 10. cxd4 {[%emt 0:00:07]} Qxd2+ {[%emt 0:00:22]} 11. Bxd2 {[%emt 0:02:56]} O-O {[%emt 0:02:09]} 12. Nf3 {[%emt 0:15:12]} Bg4 {[%emt 0:08:57]} 13. d5 {[%emt 0:04:53]} Nd7 {[%emt 0:05:52]} 14. Bd3 {[%emt 0:20:33]} e6 {[%emt 0:03:21]} 15. d6 {[%emt 0:11:33]} Rfd8 {[%emt 0:12:05]} 16. Bb4 {[%emt 0:08:14]} Bxf3 {[%emt 0:04:25]} 17. gxf3 {[%emt 0:00:08]} Ne5 {[%emt 0:02:24]} 18. Be2 {[%emt 0:00:55]} Nc6 {[%emt 0:05:09]} 19. Ba3 {[%emt 0:02:18]} Be5 {[%emt 0:06:56]} 20. Rd1 {[%emt 0:12:09]} Nd4 {[%emt 0:02:52]} 21. f4 {[%emt 0:03:09]} Bxd6 {[%emt 0:01:29]} 22. Rxd4 {[%emt 0:01:14]} Bxa3 {[%emt 0:00:08]} 23. Rd3 {[%emt 0:03:53]} Rac8 {[%emt 0:06:14]} 24. O-O {[%emt 0:01:12]} Rxd3 {[%emt 0:03:02]} 25. Bxd3 {[%emt 0:00:09]} f5 {[%emt 0:04:07]} 26. Kg2 {[%emt 0:01:38]} Kf7 {[%emt 0:05:55]} 27. Rb1 {[%emt 0:01:32]} Rc7 {[%emt 0:03:10]} 28. Rb3 {[%emt 0:02:31]} Bc1 {[%emt 0:01:08]} 29. Kf3 {[%emt 0:01:34]} Ke7 {[%emt 0:00:18]} 30. h3 {[%emt 0:01:57]} b6 {[%emt 0:02:04]} 31. Bb1 {[%emt 0:02:45]} Rc4 {[%emt 0:01:55]} 32. Bd3 {[%emt 0:01:06]} Rd4 {[%emt 0:02:13]} 33. Rc3 {[%emt 0:00:38]} Bd2 {[%emt 0:01:31]} 34. Rb3 {[%emt 0:01:06]} Kd6 {[%emt 0:04:34]} 35. Bb1 {[%emt 0:00:34]} Kc5 {[%emt 0:00:19]} 36. Bd3 {[%emt 0:00:15]} a5 {[%emt 0:00:34]} 37. Rb5+ {[%emt 0:00:49]} Kc6 {[%emt 0:00:10]} 38. Rb3 {[%emt 0:00:12]} a4 {[%emt 0:00:25]} 39. Ra3 {[%emt 0:00:56]} Bb4 {[%emt 0:03:01]} 40. Ke3 {[%emt 0:00:31]} Kc5 {[%emt 0:00:30]} 0-1

[Event "23rd Hogeschool Zeeland Open 2019"]
[Site "Vlissingen"]
[Date "2019.08.04"]
[Round "3.5"]
[White "Bezemer, Arno"]
[Black "Werle, Jan"]
[Result "0-1"]
[ECO "C06"]
[WhiteElo "2245"]
[BlackElo "2555"]
[Annotator "ChessBase"]
[PlyCount "80"]
[EventDate "2019.08.03"]
[EventType "swiss"]
[EventCountry "NED"]
[SourceTitle "playchess.com"]
[Source "ChessBase"]
[SourceQuality "1"]
[TimeControl "40/5400+30:1800+30"]

1. e4 {[%emt 0:00:00]} e6 {[%emt 0:00:00]} 2. d4 {[%emt 0:00:00]} d5 {[%emt 0:00:00]} 3. Nd2 {[%emt 0:00:00]} Be7 {[%emt 0:00:00]} 4. Ngf3 {[%emt 0:00:20]} Nf6 {[%emt 0:00:00]} 5. e5 {[%emt 0:00:07]} Nfd7 {[%emt 0:00:02]} 6. Bd3 {[%emt 0:00:19]} c5 {[%emt 0:00:09]} 7. c3 {[%emt 0:00:06]} Nc6 {[%emt 0:00:30]} 8. O-O {[%emt 0:00:15]} g5 {[%emt 0:00:08]} 9. dxc5 {[%emt 0:01:35]} g4 {[%emt 0:01:35]} 10. Nd4 {[%emt 0:01:02]} Ndxe5 {[%emt 0:00:15]} 11. Bb5 {[%emt 0:03:52]} Bd7 {[%emt 0:03:38]} 12. b4 {[%emt 0:07:11]} h5 {[%emt 0:11:09]} 13. f4 {[%emt 0:01:42]} Nxd4 {[%emt 0:03:48]} 14. Bxd7+ {[%emt 0:00:24]} Qxd7 {[%emt 0:02:09]} 15. cxd4 {[%emt 0:01:02]} Ng6 {[%emt 0:08:11]} 16. Nb3 {[%emt 0:10:56]} Nh4 {[%emt 0:03:46]} 17. Qd3 {[%emt 0:05:18]} Qa4 {[%emt 0:05:17]} 18. Bd2 {[%emt 0:17:10]} Nf5 {[%emt 0:00:55]} 19. Rfe1 {[%emt 0:00:50]} Kf8 {[%emt 0:05:39]} 20. Bc3 {[%emt 0:06:49]} Bf6 {[%emt 0:06:53]} 21. Nd2 {[%emt 0:03:47]} Kg7 {[%emt 0:10:49]} 22. Nf1 {[%emt 0:02:36]} a5 {[%emt 0:01:55]} 23. a3 {[%emt 0:01:59]} axb4 {[%emt 0:01:01]} 24. axb4 {[%emt 0:00:05]} Qb3 {[%emt 0:01:13]} 25. Kh1 {[%emt 0:06:56]} Qc4 {[%emt 0:02:58]} 26. Qxc4 {[%emt 0:03:08]} dxc4 {[%emt 0:00:03]} 27. Ne3 {[%emt 0:05:19]} Nxe3 {[%emt 0:16:17]} 28. Rxe3 {[%emt 0:00:58]} Rxa1+ {[%emt 0:00:09]} 29. Bxa1 {[%emt 0:00:06]} Ra8 {[%emt 0:00:02]} 30. Re1 {[%emt 0:12:44]} Ra3 {[%emt 0:02:47]} 31. b5 {[%emt 0:05:01]} Rb3 {[%emt 0:02:41]} 32. c6 {[%emt 0:01:49]} bxc6 {[%emt 0:00:50]} 33. bxc6 {[%emt 0:00:07]} Rb6 {[%emt 0:00:42]} 34. f5 {[%emt 0:02:09]} Rxc6 {[%emt 0:00:51]} 35. fxe6 {[%emt 0:00:11]} fxe6 {[%emt 0:00:26]} 36. Bc3 {[%emt 0:00:34]} Ra6 {[%emt 0:01:23]} 37. Kg1 {[%emt 0:00:39]} Ra3 {[%emt 0:00:17]} 38. Bd2 {[%emt 0:01:21]} Bxd4+ {[%emt 0:00:14]} 39. Kf1 {[%emt 0:00:02]} e5 {[%emt 0:00:56]} 40. Rb1 {[%emt 0:00:51]} Kg6 {[%emt 0:00:56]} 0-1

[Event "23rd Hogeschool Zeeland Open 2019"]
[Site "Vlissingen"]
[Date "2019.08.04"]
[Round "3.6"]
[White "Ikonnikov, Vyacheslav"]
[Black "Stange, Sven"]
[Result "1-0"]
[ECO "E15"]
[WhiteElo "2499"]
[BlackElo "2167"]
[Annotator "ChessBase"]
[PlyCount "79"]
[EventDate "2019.08.03"]
[EventType "swiss"]
[EventCountry "NED"]
[SourceTitle "playchess.com"]
[Source "ChessBase"]
[SourceQuality "1"]
[TimeControl "40/5400+30:1800+30"]

1. d4 {[%emt 0:00:00]} Nf6 {[%emt 0:00:00]} 2. Nf3 {[%emt 0:00:00]} e6 {[%emt 0:00:00]} 3. c4 {[%emt 0:00:02]} b6 {[%emt 0:00:07]} 4. g3 {[%emt 0:00:52]} Ba6 {[%emt 0:00:21]} 5. b3 {[%emt 0:00:32]} Bb4+ {[%emt 0:00:10]} 6. Bd2 {[%emt 0:00:13]} Be7 {[%emt 0:00:07]} 7. Bg2 {[%emt 0:00:24]} c6 {[%emt 0:01:13]} 8. O-O {[%emt 0:00:44]} d5 {[%emt 0:01:54]} 9. Qc2 {[%emt 0:00:06]} O-O {[%emt 0:02:02]} 10. Rd1 {[%emt 0:00:40]} Nbd7 {[%emt 0:08:41]} 11. a4 {[%emt 0:00:12]} Ne4 {[%emt 0:04:58]} 12. Be1 {[%emt 0:00:28]} Qc7 {[%emt 1:16:27]} 13. cxd5 {[%emt 0:08:01]} exd5 {[%emt 0:00:00]} 14. Nc3 {[%emt 0:00:16]} Nxc3 {[%emt 0:00:00]} 15. Bxc3 {[%emt 0:00:07]} Bf6 {[%emt 0:00:00]} 16. Rac1 {[%emt 0:03:48]} Rfe8 {[%emt 0:00:00]} 17. e3 {[%emt 0:00:14]} Bb7 {[%emt 0:00:00]} 18. b4 {[%emt 0:01:09]} Rac8 {[%emt 0:00:00]} 19. Bh3 {[%emt 0:01:06]} Rcd8 {[%emt 0:00:00]} 20. Ne1 {[%emt 0:04:12]} Ba6 {[%emt 0:00:00]} 21. b5 {[%emt 0:00:54]} cxb5 {[%emt 0:00:00]} 22. Bf1 {[%emt 0:00:13]} b4 {[%emt 0:00:00]} 23. Bxa6 {[%emt 0:03:46]} bxc3 {[%emt 0:00:00]} 24. Qb3 {[%emt 0:00:16]} Nb8 {[%emt 0:00:00]} 25. Rxc3 {[%emt 0:00:59]} Nxa6 {[%emt 0:00:00]} 26. Rxc7 {[%emt 0:00:38]} Nxc7 {[%emt 0:00:00]} 27. Rc1 {[%emt 0:01:52]} Re7 {[%emt 0:00:00]} 28. Nd3 {[%emt 0:01:26]} Rdd7 {[%emt 0:00:00]} 29. Rc3 {[%emt 0:08:26]} g6 {[%emt 0:00:00]} 30. Nb4 {[%emt 0:00:37]} Re8 {[%emt 0:00:00]} 31. Qc2 {[%emt 0:00:57]} Bd8 {[%emt 0:00:00]} 32. Nc6 {[%emt 0:02:45]} Ne6 {[%emt 0:00:00]} 33. Ne5 {[%emt 0:00:13]} Rc7 {[%emt 0:00:00]} 34. Rxc7 {[%emt 0:00:21]} Bxc7 {[%emt 0:00:00]} 35. Qc6 {[%emt 0:03:14]} Rd8 {[%emt 0:00:00]} 36. Nd7 {[%emt 0:01:06]} Kg7 {[%emt 0:00:00]} 37. e4 {[%emt 0:00:17]} Bb8 {[%emt 0:00:00]} 38. Nxb8 {[%emt 0:00:28]} Rxb8 {[%emt 0:00:00]} 39. exd5 {[%emt 0:00:30]} Nxd4 {[%emt 0:00:00]} 40. Qc3 {[%emt 0:00:12]} 1-0

[Event "23rd Hogeschool Zeeland Open 2019"]
[Site "Vlissingen"]
[Date "2019.08.04"]
[Round "3.8"]
[White "Hausrath, Daniel"]
[Black "Duchene, Rene"]
[Result "1-0"]
[ECO "A12"]
[WhiteElo "2468"]
[BlackElo "2157"]
[Annotator "RC"]
[PlyCount "71"]
[EventDate "2019.08.03"]
[EventType "swiss"]
[EventCountry "NED"]
[SourceTitle "playchess.com"]
[Source "ChessBase"]
[SourceQuality "1"]
[TimeControl "40/5400+30:1800+30"]

1. Nf3 {[%emt 0:00:00]} d5 {[%emt 0:00:00]} 2. g3 {[%emt 0:00:07]} Nf6 {[%emt 0:00:15]} 3. Bg2 {[%emt 0:00:07]} Bf5 {[%emt 0:01:24]} 4. c4 {[%emt 0:01:33]} e6 {[%emt 0:00:36]} 5. b3 {[%emt 0:07:10]} c6 {[%emt 0:03:53]} 6. O-O {[%emt 0:00:19]} Nbd7 {[%emt 0:00:26]} 7. Bb2 {[%emt 0:00:10]} h6 {[%emt 0:04:18]} 8. d3 {[%emt 0:00:18]} Be7 {[%emt 0:02:08]} 9. Nbd2 {[%emt 0:00:09]} O-O {[%emt 0:00:34]} 10. a3 {[%emt 0:00:07]} a5 {[%emt 0:00:07]} 11. Qb1 {[%emt 0:03:13]} Bh7 {[%emt 0:05:48]} 12. Bc3 {[%emt 0:06:44]} Nc5 {[%emt 0:17:13]} 13. Qb2 {[%emt 0:07:42]} Qb6 {[%emt 0:06:22]} 14. Ne5 {[%emt 0:10:17]} Rfd8 {[%emt 0:02:33]} 15. Bd4 {[%emt 0:08:34]} Qa6 {[%emt 0:06:15]} 16. Rfc1 {[%emt 0:08:00]} Rac8 {[%emt 0:00:47]} 17. cxd5 {[%emt 0:03:10]} cxd5 {[%emt 0:00:26]} 18. Rc2 {[%emt 0:00:55]} Ne8 {[%emt 0:10:59]} 19. Rac1 {[%emt 0:03:25]} b6 {[%emt 0:00:42]} 20. b4 {[%emt 0:04:30]} f6 {[%emt 0:10:06]} 21. Nc6 {[%emt 0:05:26]} Rxc6 {[%emt 0:01:46]} 22. b5 {[%emt 0:00:17]} Qa8 {[%emt 0:00:39]} 23. bxc6 {[%emt 0:00:07]} Qxc6 {[%emt 0:00:15]} 24. Nb3 {[%emt 0:00:46]} Rc8 {[%emt 0:01:09]} 25. Bh3 {[%emt 0:06:11]} f5 {[%emt 0:01:56]} 26. Nxc5 {[%emt 0:04:04]} Bxc5 {[%emt 0:07:53]} 27. Bxc5 {[%emt 0:00:41]} bxc5 {[%emt 0:00:06]} 28. Rxc5 {[%emt 0:01:44]} Qxc5 {[%emt 0:00:08]} 29. Rxc5 {[%emt 0:00:05]} Rxc5 {[%emt 0:00:06]} 30. Qb6 {[%emt 0:00:33]} Rc1+ {[%emt 0:00:57]} 31. Kg2 {[%emt 0:00:02]} Nc7 {[%emt 0:00:59]} 32. g4 {[%emt 0:03:18]} g5 {[%emt 0:02:06]} 33. gxf5 {[%emt 0:01:34]} h5 {[%emt 0:00:49]} 34. fxe6 {[%emt 0:02:49]} g4 {[%emt 0:00:18]} 35. Qb8+ {[%emt 0:00:08]} Kg7 {[%emt 0:00:15]} 36. Qb2+ {[%emt 0:00:06]} 1-0

[Event "23rd Hogeschool Zeeland Open 2019"]
[Site "Vlissingen"]
[Date "2019.08.04"]
[Round "3.9"]
[White "Van Baar, Esper"]
[Black "Romanishin, Oleg M"]
[Result "1/2-1/2"]
[ECO "B22"]
[WhiteElo "2108"]
[BlackElo "2443"]
[Annotator "NA"]
[PlyCount "60"]
[EventDate "2019.08.03"]
[EventType "swiss"]
[EventCountry "NED"]
[SourceTitle "playchess.com"]
[Source "ChessBase"]
[SourceQuality "1"]
[TimeControl "40/5400+30:1800+30"]

1. e4 {[%emt 0:00:00]} c5 {[%emt 0:00:33]} 2. c3 {[%emt 0:00:19]} Qa5 {[%emt 0:00:36]} 3. g3 {[%emt 0:00:56]} Nc6 {[%emt 0:02:20]} 4. Bg2 {[%emt 0:05:11]} Nf6 {[%emt 0:07:33]} 5. Ne2 {[%emt 0:03:48]} d6 {[%emt 0:12:52]} 6. O-O {[%emt 0:03:06]} c4 {[%emt 0:09:28]} 7. b3 {[%emt 0:11:11]} cxb3 {[%emt 0:02:47]} 8. Qxb3 {[%emt 0:00:26]} Qa6 {[%emt 0:03:33]} 9. Re1 {[%emt 0:05:39]} e5 {[%emt 0:08:56]} 10. d4 {[%emt 0:04:10]} Be7 {[%emt 0:01:38]} 11. Na3 {[%emt 0:04:39]} O-O {[%emt 0:01:40]} 12. Nc4 {[%emt 0:02:08]} Na5 {[%emt 0:05:35]} 13. Nxa5 {[%emt 0:00:04]} Qxa5 {[%emt 0:00:04]} 14. Bd2 {[%emt 0:01:58]} Qc7 {[%emt 0:03:58]} 15. Rac1 {[%emt 0:03:38]} Be6 {[%emt 0:02:51]} 16. d5 {[%emt 0:03:00]} Bc8 {[%emt 0:00:52]} 17. c4 {[%emt 0:04:35]} Nd7 {[%emt 0:02:08]} 18. Be3 {[%emt 0:05:07]} Nc5 {[%emt 0:01:39]} 19. Qa3 {[%emt 0:02:09]} b6 {[%emt 0:00:27]} 20. Rc2 {[%emt 0:06:41]} Bd7 {[%emt 0:03:41]} 21. Nc1 {[%emt 0:01:58]} f5 {[%emt 0:03:00]} 22. f3 {[%emt 0:00:13]} f4 {[%emt 0:02:20]} 23. Bf2 {[%emt 0:02:44]} g5 {[%emt 0:03:47]} 24. g4 {[%emt 0:01:09]} Rfc8 {[%emt 0:01:52]} 25. Nd3 {[%emt 0:06:27]} Nxd3 {[%emt 0:01:11]} 26. Qxd3 {[%emt 0:00:03]} Qb7 {[%emt 0:00:07]} 27. Bf1 {[%emt 0:06:50]} Qa6 {[%emt 0:02:00]} 28. Rc3 {[%emt 0:00:55]} Rc7 {[%emt 0:00:57]} 29. Ra3 {[%emt 0:01:30]} Qc8 {[%emt 0:00:10]} 30. Rb1 {[%emt 0:01:53]} Kg7 {[%emt 0:03:54]} 1/2-1/2

[Event "23rd Hogeschool Zeeland Open 2019"]
[Site "Vlissingen"]
[Date "2019.08.04"]
[Round "3.11"]
[White "Mijnster, Niels"]
[Black "Zwirs, Nico"]
[Result "0-1"]
[ECO "B13"]
[WhiteElo "2089"]
[BlackElo "2380"]
[Annotator "NA"]
[PlyCount "68"]
[EventDate "2019.08.03"]
[EventType "swiss"]
[EventCountry "NED"]
[SourceTitle "playchess.com"]
[Source "ChessBase"]
[SourceQuality "1"]
[TimeControl "40/5400+30:1800+30"]

1. d4 {[%emt 0:00:00]} d5 {[%emt 0:00:04]} 2. Bf4 {[%emt 0:00:00]} c5 {[%emt 0:00:20]} 3. e3 {[%emt 0:02:25]} cxd4 {[%emt 0:00:23]} 4. exd4 {[%emt 0:00:17]} Nc6 {[%emt 0:00:06]} 5. c3 {[%emt 0:01:05]} f6 {[%emt 0:00:25]} 6. Bd3 {[%emt 0:04:41]} e5 {[%emt 0:01:44]} 7. Qh5+ {[%emt 0:05:23]} g6 {[%emt 0:00:56]} 8. Bxg6+ {[%emt 0:00:29]} hxg6 {[%emt 0:00:11]} 9. Qxh8 {[%emt 0:00:24]} exf4 {[%emt 0:00:08]} 10. Qxg8 {[%emt 1:20:16]} Bf5 {[%emt 0:00:19]} 11. Qh7 {[%emt 0:00:00]} Qb6 {[%emt 0:01:02]} 12. Nf3 {[%emt 0:00:00]} Qxb2 {[%emt 0:01:19]} 13. O-O {[%emt 0:00:00]} Qxa1 {[%emt 0:04:44]} 14. Qxb7 {[%emt 0:00:00]} Rc8 {[%emt 0:03:07]} 15. Re1+ {[%emt 0:00:00]} Ne7 {[%emt 0:01:51]} 16. Nh4 {[%emt 0:00:00]} Kf7 {[%emt 0:00:23]} 17. Nxf5 {[%emt 0:00:00]} gxf5 {[%emt 0:00:15]} 18. Qb3 {[%emt 0:00:00]} Rc6 {[%emt 0:03:47]} 19. h4 {[%emt 0:00:00]} Rb6 {[%emt 0:05:09]} 20. Qd1 {[%emt 0:00:00]} f3 {[%emt 0:00:20]} 21. c4 {[%emt 0:00:00]} Re6 {[%emt 0:14:45]} 22. Rxe6 {[%emt 0:01:59]} Kxe6 {[%emt 0:00:02]} 23. cxd5+ {[%emt 0:01:37]} Nxd5 {[%emt 0:00:12]} 24. gxf3 {[%emt 0:01:31]} Qxa2 {[%emt 0:00:17]} 25. Nd2 {[%emt 0:00:37]} Bh6 {[%emt 0:00:40]} 26. Ne4 {[%emt 0:01:23]} fxe4 {[%emt 0:00:48]} 27. fxe4 {[%emt 0:00:01]} Nc3 {[%emt 0:00:22]} 28. Qg4+ {[%emt 0:00:48]} Ke7 {[%emt 0:00:07]} 29. e5 {[%emt 0:00:49]} Qb1+ {[%emt 0:02:42]} 30. Kh2 {[%emt 0:00:04]} Qe4 {[%emt 0:07:50]} 31. exf6+ {[%emt 0:00:11]} Kxf6 {[%emt 0:00:10]} 32. Qd7 {[%emt 0:01:21]} Qxh4+ {[%emt 0:06:56]} 33. Kg2 {[%emt 0:00:02]} Qg5+ {[%emt 0:00:22]} 34. Kf1 {[%emt 0:00:20]} Qb5+ {[%emt 0:00:06]} 0-1

[Event "23rd Hogeschool Zeeland Open 2019"]
[Site "Vlissingen"]
[Date "2019.08.04"]
[Round "3.14"]
[White "Van Liempt, Michael"]
[Black "Nebolsina, Vera"]
[Result "1/2-1/2"]
[ECO "E94"]
[WhiteElo "2091"]
[BlackElo "2269"]
[Annotator "NA"]
[PlyCount "67"]
[EventDate "2019.08.03"]
[EventType "swiss"]
[EventCountry "NED"]
[SourceTitle "playchess.com"]
[Source "ChessBase"]
[SourceQuality "1"]
[TimeControl "40/5400+30:1800+30"]

1. e4 {[%emt 0:00:00]} g6 {[%emt 0:00:00]} 2. d4 {[%emt 0:00:00]} Bg7 {[%emt 0:00:00]} 3. c4 {[%emt 0:00:34]} d6 {[%emt 0:00:29]} 4. Nc3 {[%emt 0:00:24]} Nf6 {[%emt 0:04:20]} 5. Nf3 {[%emt 0:01:31]} O-O {[%emt 0:00:15]} 6. Be2 {[%emt 0:00:26]} e5 {[%emt 0:00:29]} 7. d5 {[%emt 0:01:20]} a5 {[%emt 0:04:14]} 8. O-O {[%emt 0:01:46]} Na6 {[%emt 0:00:36]} 9. Ne1 {[%emt 0:01:49]} Nc5 {[%emt 0:00:52]} 10. Qc2 {[%emt 0:01:01]} Bg4 {[%emt 0:08:42]} 11. Bxg4 {[%emt 0:08:18]} Nxg4 {[%emt 0:00:05]} 12. f3 {[%emt 0:00:37]} Nf6 {[%emt 0:01:29]} 13. Be3 {[%emt 0:03:44]} b6 {[%emt 0:00:35]} 14. b3 {[%emt 0:03:12]} Nh5 {[%emt 0:01:47]} 15. Rd1 {[%emt 0:01:55]} f5 {[%emt 0:01:35]} 16. a3 {[%emt 0:05:13]} f4 {[%emt 0:04:53]} 17. Bf2 {[%emt 0:00:45]} Bf6 {[%emt 0:02:13]} 18. b4 {[%emt 0:03:13]} axb4 {[%emt 0:00:08]} 19. axb4 {[%emt 0:00:16]} Nd7 {[%emt 0:00:27]} 20. Nd3 {[%emt 0:00:57]} Bh4 {[%emt 0:00:44]} 21. Bxh4 {[%emt 0:18:38]} Qxh4 {[%emt 0:00:15]} 22. Ra1 {[%emt 0:01:51]} Qe7 {[%emt 0:13:50]} 23. Nb5 {[%emt 0:03:35]} Ndf6 {[%emt 0:00:24]} 24. c5 {[%emt 0:02:35]} bxc5 {[%emt 0:07:37]} 25. bxc5 {[%emt 0:00:49]} Rxa1 {[%emt 0:04:00]} 26. Rxa1 {[%emt 0:00:32]} Rb8 {[%emt 0:00:09]} 27. cxd6 {[%emt 0:03:01]} cxd6 {[%emt 0:00:14]} 28. Qc6 {[%emt 0:01:41]} Ne8 {[%emt 0:00:29]} 29. Ra7 {[%emt 0:06:17]} Qd8 {[%emt 0:00:19]} 30. Nc7 {[%emt 0:11:05]} Qh4 {[%emt 0:10:19]} 31. Ra1 {[%emt 0:00:09]} Ng3 {[%emt 0:02:18]} 32. Nxe8 {[%emt 0:03:59]} Ne2+ {[%emt 0:00:10]} 33. Kh1 {[%emt 0:01:35]} Ng3+ {[%emt 0:00:07]} 34. Kg1 {[%emt 0:14:12]} 1/2-1/2

[Event "23rd Hogeschool Zeeland Open 2019"]
[Site "Vlissingen"]
[Date "2019.08.04"]
[Round "3.15"]
[White "Volkers, Annemarie"]
[Black "Afek, Yochanan"]
[Result "1/2-1/2"]
[ECO "B34"]
[WhiteElo "1966"]
[BlackElo "2253"]
[Annotator "NA"]
[PlyCount "57"]
[EventDate "2019.08.03"]
[EventType "swiss"]
[EventCountry "NED"]
[SourceTitle "playchess.com"]
[Source "ChessBase"]
[SourceQuality "1"]
[TimeControl "40/5400+30:1800+30"]

1. e4 {[%emt 0:00:00]} c5 {[%emt 0:00:00]} 2. Nf3 {[%emt 0:00:00]} Nc6 {[%emt 0:00:11]} 3. d4 {[%emt 0:00:02]} cxd4 {[%emt 0:00:05]} 4. Nxd4 {[%emt 0:00:05]} g6 {[%emt 0:00:04]} 5. Nc3 {[%emt 0:00:31]} Bg7 {[%emt 0:00:11]} 6. Nde2 {[%emt 0:00:16]} Nf6 {[%emt 0:03:34]} 7. g3 {[%emt 0:00:41]} b6 {[%emt 0:00:12]} 8. Bg2 {[%emt 0:00:10]} Ba6 {[%emt 0:00:07]} 9. O-O {[%emt 0:01:47]} O-O {[%emt 0:01:17]} 10. Re1 {[%emt 0:05:45]} Rc8 {[%emt 0:00:18]} 11. h3 {[%emt 0:03:36]} d6 {[%emt 0:01:43]} 12. a4 {[%emt 0:05:50]} h6 {[%emt 0:06:35]} 13. Nb5 {[%emt 0:06:27]} Bb7 {[%emt 0:00:50]} 14. Ned4 {[%emt 0:04:16]} Nxd4 {[%emt 0:07:20]} 15. Nxd4 {[%emt 0:01:39]} a6 {[%emt 0:01:56]} 16. e5 {[%emt 0:07:57]} dxe5 {[%emt 0:06:55]} 17. Bxb7 {[%emt 0:02:09]} Rc7 {[%emt 0:02:45]} 18. Ne6 {[%emt 0:06:12]} fxe6 {[%emt 0:06:43]} 19. Bxa6 {[%emt 0:01:17]} Qxd1 {[%emt 0:10:35]} 20. Rxd1 {[%emt 0:02:33]} Rxc2 {[%emt 0:02:33]} 21. Bd3 {[%emt 0:01:43]} Rc6 {[%emt 0:00:10]} 22. Bxg6 {[%emt 0:03:24]} e4 {[%emt 0:00:12]} 23. Bd2 {[%emt 0:02:01]} Rc2 {[%emt 0:23:37]} 24. Rab1 {[%emt 0:03:53]} Ra8 {[%emt 0:08:27]} 25. Be3 {[%emt 0:12:14]} Rb8 {[%emt 0:01:07]} 26. b4 {[%emt 0:02:26]} Ra2 {[%emt 0:00:36]} 27. Ra1 {[%emt 0:04:42]} Rxa1 {[%emt 0:01:02]} 28. Rxa1 {[%emt 0:00:05]} Nd5 {[%emt 0:14:55]} 29. Rc1 {[%emt 0:05:43]} 1/2-1/2